[Event "Late-Titled-Tuesday-Blitz-April-02-2024"]
[Site "Chess.com"]
[Date "2024.04.02"]
[Round "5"]
[White "Savagelittlemole"]
[Black "KnightDuta"]
[Result "0-1"]
[WhiteElo "2495"]
[BlackElo "2760"]
[TimeControl "180+1"]
[EndTime "14:54:41 PDT"]
[Termination "KnightDuta won by resignation"]

1. e4 {[%clk 0:03:00.9]} 1... d5 {[%clk 0:02:59.3]} 2. exd5 {[%clk 0:03:00.5]}
2... Nf6 {[%clk 0:02:58.9]} 3. Bb5+ {[%clk 0:02:59.9]} 3... Bd7 {[%clk
0:02:58.9]} 4. Bc4 {[%clk 0:02:59.3]} 4... Bg4 {[%clk 0:02:58.9]} 5. f3 {[%clk
0:02:59.3]} 5... Bf5 {[%clk 0:02:59.6]} 6. Nc3 {[%clk 0:02:59.6]} 6... Nbd7
{[%clk 0:03:00.1]} 7. Bb3 {[%clk 0:02:56.4]} 7... Nb6 {[%clk 0:02:59.3]} 8. Nge2
{[%clk 0:02:53.3]} 8... Nfxd5 {[%clk 0:02:59.3]} 9. O-O {[%clk 0:02:52.6]} 9...
e6 {[%clk 0:02:59.4]} 10. Ne4 {[%clk 0:02:47.8]} 10... a5 {[%clk 0:02:41.7]} 11.
a3 {[%clk 0:02:43.5]} 11... a4 {[%clk 0:02:39.9]} 12. Ba2 {[%clk 0:02:43.5]}
12... Be7 {[%clk 0:02:37.9]} 13. d4 {[%clk 0:02:41.9]} 13... O-O {[%clk
0:02:34.2]} 14. N2g3 {[%clk 0:02:33.8]} 14... Bg6 {[%clk 0:02:33.4]} 15. c4
{[%clk 0:02:32.8]} 15... Nf6 {[%clk 0:02:32.5]} 16. Be3 {[%clk 0:02:27.7]} 16...
Nxe4 {[%clk 0:02:13.4]} 17. fxe4 {[%clk 0:02:15.6]} 17... e5 {[%clk 0:02:13.4]}
18. d5 {[%clk 0:02:07.5]} 18... Nd7 {[%clk 0:02:13.4]} 19. Nf5 {[%clk 0:01:59]}
19... Bc5 {[%clk 0:02:12.1]} 20. Qd2 {[%clk 0:01:55.9]} 20... b6 {[%clk
0:02:01.3]} 21. Rf3 {[%clk 0:01:52.4]} 21... Bxe3+ {[%clk 0:01:58]} 22. Qxe3
{[%clk 0:01:50]} 22... Nc5 {[%clk 0:01:58.9]} 23. Raf1 {[%clk 0:01:45]} 23...
Qd7 {[%clk 0:01:34.9]} 24. Bb1 {[%clk 0:01:43.4]} 24... Nb3 {[%clk 0:01:29.2]}
25. Rg3 {[%clk 0:01:29.9]} 25... f6 {[%clk 0:01:12.8]} 26. h4 {[%clk 0:01:21.6]}
26... Bxf5 {[%clk 0:01:09.9]} 27. Rxf5 {[%clk 0:01:19.1]} 27... Nd4 {[%clk
0:01:10.2]} 28. Rh5 {[%clk 0:01:12.1]} 28... Kh8 {[%clk 0:00:55.5]} 29. Bd3
{[%clk 0:01:07.5]} 29... Qf7 {[%clk 0:00:41.6]} 30. Be2 {[%clk 0:01:05.7]} 30...
Ra5 {[%clk 0:00:21.2]} 31. Qd2 {[%clk 0:00:26.1]} 31... Rc5 {[%clk 0:00:20.2]}
32. Rc3 {[%clk 0:00:20.5]} 32... c6 {[%clk 0:00:13.6]} 33. Bd1 {[%clk 0:00:20]}
33... cxd5 {[%clk 0:00:12.3]} 34. cxd5 {[%clk 0:00:20.9]} 34... Rfc8 {[%clk
0:00:12.2]} 35. Qe3 {[%clk 0:00:17.5]} 35... Nb5 {[%clk 0:00:06.6]} 36. Rxc5
{[%clk 0:00:17]} 36... Rxc5 {[%clk 0:00:07.5]} 37. Kh2 {[%clk 0:00:16.1]} 37...
Nd6 {[%clk 0:00:06.3]} 38. Qf2 {[%clk 0:00:15.1]} 38... Qe8 {[%clk 0:00:03.9]}
39. Bf3 {[%clk 0:00:14.3]} 39... Rc1 {[%clk 0:00:02.6]} 40. Qe3 {[%clk 0:00:12]}
40... Rc5 {[%clk 0:00:02.5]} 41. Qd2 {[%clk 0:00:10.2]} 41... Nxe4 {[%clk
0:00:02.9]} 42. Bxe4 {[%clk 0:00:10.2]} 42... Qxh5 {[%clk 0:00:03.2]} 43. g3
{[%clk 0:00:09.1]} 43... Qg4 {[%clk 0:00:03.2]} 44. Bg2 {[%clk 0:00:09.4]} 44...
Qd4 {[%clk 0:00:03.3]} 45. Qb4 {[%clk 0:00:08.7]} 45... Qxb4 {[%clk 0:00:03.5]}
46. axb4 {[%clk 0:00:09.6]} 46... Rc2 {[%clk 0:00:04.4]} 47. Kh3 {[%clk
0:00:08.5]} 47... Rxb2 {[%clk 0:00:04.9]} 48. d6 {[%clk 0:00:07.9]} 48... Rd2
{[%clk 0:00:05.8]} 49. Bc6 {[%clk 0:00:08.3]} 49... Rxd6 {[%clk 0:00:05.8]} 50.
Bxa4 {[%clk 0:00:08.8]} 50... Rd4 {[%clk 0:00:06.7]} 51. Bd7 {[%clk 0:00:08.4]}
51... Rxb4 {[%clk 0:00:07.5]} 52. h5 {[%clk 0:00:08.1]} 52... Rd4 {[%clk
0:00:08.4]} 53. Be8 {[%clk 0:00:08.3]} 53... h6 {[%clk 0:00:08.7]} 54. g4 {[%clk
0:00:08.3]} 54... Rb4 {[%clk 0:00:08.6]} 55. Kg3 {[%clk 0:00:08.6]} 55... b5
{[%clk 0:00:09.3]} 56. Kf3 {[%clk 0:00:09.5]} 56... Rb3+ {[%clk 0:00:09.8]} 57.
Ke4 {[%clk 0:00:09.9]} 57... b4 {[%clk 0:00:10.5]} 58. Kf5 {[%clk 0:00:10.3]}
58... Rg3 {[%clk 0:00:10.9]} 59. Bf7 {[%clk 0:00:10.4]} 59... b3 {[%clk
0:00:11.2]} 60. Be6 {[%clk 0:00:08.6]} 60... b2 {[%clk 0:00:11.3]} 61. Ba2
{[%clk 0:00:09.1]} 61... Ra3 {[%clk 0:00:11]} 62. Bb1 {[%clk 0:00:09.2]} 62...
Ra1 {[%clk 0:00:11.9]} 63. Kg6 {[%clk 0:00:07.2]} 63... Rxb1 {[%clk 0:00:11.8]}
64. g5 {[%clk 0:00:08.1]} 64... Rg1 {[%clk 0:00:11.5]} 65. Kf7 {[%clk
0:00:07.6]} 65... Rxg5 {[%clk 0:00:12.1]} 0-1

[Event "Late-Titled-Tuesday-Blitz-April-02-2024"]
[Site "Chess.com"]
[Date "2024.04.02"]
[Round "5"]
[White "flawian2008"]
[Black "rhwr"]
[Result "1-0"]
[WhiteElo "2530"]
[BlackElo "2287"]
[TimeControl "180+1"]
[EndTime "14:54:47 PDT"]
[Termination "flawian2008 won by resignation"]

1. d4 {[%clk 0:03:00.9]} 1... c5 {[%clk 0:02:58.6]} 2. d5 {[%clk 0:03:00.8]}
2... d6 {[%clk 0:02:58.2]} 3. e4 {[%clk 0:03:00.1]} 3... Nf6 {[%clk 0:02:58.7]}
4. Nc3 {[%clk 0:02:58.6]} 4... g6 {[%clk 0:02:59.3]} 5. Nf3 {[%clk 0:02:57.7]}
5... Bg7 {[%clk 0:02:59.6]} 6. a4 {[%clk 0:02:57.6]} 6... O-O {[%clk 0:02:59.9]}
7. Bd3 {[%clk 0:02:57.1]} 7... Na6 {[%clk 0:02:54.6]} 8. O-O {[%clk 0:02:48.1]}
8... Nb4 {[%clk 0:02:54.1]} 9. Re1 {[%clk 0:02:47.9]} 9... a6 {[%clk 0:02:50.9]}
10. h3 {[%clk 0:02:46.4]} 10... Rb8 {[%clk 0:02:48.7]} 11. Bf1 {[%clk
0:02:44.8]} 11... Bd7 {[%clk 0:02:47.1]} 12. e5 {[%clk 0:02:43.6]} 12... dxe5
{[%clk 0:02:45.9]} 13. Nxe5 {[%clk 0:02:44.5]} 13... Bf5 {[%clk 0:02:39.9]} 14.
Re2 {[%clk 0:02:31.7]} 14... Nfxd5 {[%clk 0:02:35.6]} 15. Nxd5 {[%clk
0:02:28.5]} 15... Qxd5 {[%clk 0:02:35.2]} 16. Qxd5 {[%clk 0:02:20]} 16... Nxd5
{[%clk 0:02:34.4]} 17. Nf3 {[%clk 0:02:13.3]} 17... Rfe8 {[%clk 0:02:19.6]} 18.
c3 {[%clk 0:02:12]} 18... e5 {[%clk 0:02:12.4]} 19. Ng5 {[%clk 0:02:11.7]} 19...
h6 {[%clk 0:01:49.6]} 20. Ne4 {[%clk 0:02:10.8]} 20... Bxe4 {[%clk 0:01:43.5]}
21. Rxe4 {[%clk 0:02:11.7]} 21... b5 {[%clk 0:01:39.2]} 22. axb5 {[%clk
0:02:11.6]} 22... axb5 {[%clk 0:01:40.1]} 23. Ra5 {[%clk 0:02:11.5]} 23... b4
{[%clk 0:01:35.9]} 24. Rxc5 {[%clk 0:02:10.7]} 24... bxc3 {[%clk 0:01:34.7]} 25.
bxc3 {[%clk 0:02:09.3]} 25... Rb1 {[%clk 0:01:26.2]} 26. Re1 {[%clk 0:02:08.9]}
26... Nf4 {[%clk 0:01:15.1]} 27. Rb5 {[%clk 0:01:53.8]} 27... Rxb5 {[%clk
0:01:09.3]} 28. Bxb5 {[%clk 0:01:54.7]} 28... Rc8 {[%clk 0:01:07.5]} 29. Bd2
{[%clk 0:01:48.5]} 29... Ne6 {[%clk 0:01:00.5]} 30. Ra1 {[%clk 0:01:45.4]} 30...
e4 {[%clk 0:00:57.8]} 31. Ra3 {[%clk 0:01:41]} 31... Rd8 {[%clk 0:00:42.8]} 32.
Be3 {[%clk 0:01:38.8]} 32... Rd1+ {[%clk 0:00:40.9]} 33. Kh2 {[%clk 0:01:39.2]}
33... Be5+ {[%clk 0:00:41.2]} 34. g3 {[%clk 0:01:38.7]} 34... Ng5 {[%clk
0:00:37.3]} 35. Be2 {[%clk 0:01:19.9]} 35... Nf3+ {[%clk 0:00:37.3]} 36. Bxf3
{[%clk 0:01:20.2]} 36... exf3 {[%clk 0:00:38.2]} 37. Bxh6 {[%clk 0:01:12]} 37...
Rd3 {[%clk 0:00:35.6]} 38. Be3 {[%clk 0:01:07.6]} 38... Rxc3 {[%clk 0:00:34.6]}
39. Ra5 {[%clk 0:00:53]} 39... Bf6 {[%clk 0:00:23.3]} 40. Ra4 {[%clk 0:00:52.5]}
40... Rd3 {[%clk 0:00:08.6]} 41. Rf4 {[%clk 0:00:50.9]} 41... Bg5 {[%clk
0:00:09]} 42. Rxf3 {[%clk 0:00:51.4]} 42... Bxe3 {[%clk 0:00:09.7]} 43. Rxe3
{[%clk 0:00:52.3]} 43... Rd2 {[%clk 0:00:09.6]} 44. Kg2 {[%clk 0:00:52.6]} 44...
Kg7 {[%clk 0:00:10.1]} 45. Re7 {[%clk 0:00:52.8]} 45... Kf6 {[%clk 0:00:10.3]}
46. Ra7 {[%clk 0:00:52.8]} 46... Rd3 {[%clk 0:00:09.8]} 47. f4 {[%clk
0:00:50.2]} 47... Rc3 {[%clk 0:00:07.7]} 48. g4 {[%clk 0:00:50.5]} 48... Kg7
{[%clk 0:00:07.6]} 49. Ra4 {[%clk 0:00:46.2]} 49... Rb3 {[%clk 0:00:07.2]} 50.
Kf2 {[%clk 0:00:46.7]} 50... Rc3 {[%clk 0:00:07.2]} 51. Kg2 {[%clk 0:00:46.5]}
51... Rb3 {[%clk 0:00:07.3]} 52. Re4 {[%clk 0:00:45.9]} 52... Rc3 {[%clk
0:00:07.2]} 53. Re2 {[%clk 0:00:46.4]} 53... Rb3 {[%clk 0:00:07.3]} 54. Rf2
{[%clk 0:00:47.1]} 54... Rc3 {[%clk 0:00:06.5]} 55. Rf3 {[%clk 0:00:47.7]} 55...
Rc4 {[%clk 0:00:04.9]} 56. Kg3 {[%clk 0:00:48]} 56... f6 {[%clk 0:00:04.3]} 57.
Ra3 {[%clk 0:00:48.4]} 57... Kh6 {[%clk 0:00:03.7]} 58. h4 {[%clk 0:00:48.7]}
58... Rb4 {[%clk 0:00:03.9]} 59. g5+ {[%clk 0:00:47.4]} 59... fxg5 {[%clk
0:00:03.4]} 60. hxg5+ {[%clk 0:00:48.3]} 60... Kg7 {[%clk 0:00:03.6]} 61. Ra7+
{[%clk 0:00:48.2]} 61... Kg8 {[%clk 0:00:03.7]} 62. Kg4 {[%clk 0:00:48.8]} 62...
Rc4 {[%clk 0:00:03.6]} 63. Ra6 {[%clk 0:00:46.3]} 63... Kg7 {[%clk 0:00:03.4]}
64. Rf6 {[%clk 0:00:45.5]} 64... Rb4 {[%clk 0:00:03.6]} 65. Kf3 {[%clk
0:00:46.1]} 65... Rc4 {[%clk 0:00:03.6]} 66. Ke3 {[%clk 0:00:46.7]} 66... Rb4
{[%clk 0:00:04]} 67. Rd6 {[%clk 0:00:46.3]} 67... Kf7 {[%clk 0:00:03.6]} 68.
Rf6+ {[%clk 0:00:44.1]} 68... Kg7 {[%clk 0:00:03.4]} 69. Rd6 {[%clk 0:00:44.6]}
69... Kf7 {[%clk 0:00:03.1]} 70. Rd4 {[%clk 0:00:45.1]} 70... Rb1 {[%clk
0:00:03.3]} 71. Rd7+ {[%clk 0:00:40.5]} 71... Ke6 {[%clk 0:00:03.2]} 72. Rg7
{[%clk 0:00:40.6]} 72... Kf5 {[%clk 0:00:03.3]} 73. Rf7+ {[%clk 0:00:40.9]}
73... Ke6 {[%clk 0:00:03.6]} 74. Rf6+ {[%clk 0:00:41.3]} 74... Ke7 {[%clk
0:00:03.9]} 75. Rxg6 {[%clk 0:00:41.9]} 75... Rb3+ {[%clk 0:00:04.3]} 76. Ke4
{[%clk 0:00:42.2]} 76... Rb4+ {[%clk 0:00:05.2]} 77. Kf5 {[%clk 0:00:42.8]}
77... Rb5+ {[%clk 0:00:05.9]} 78. Kg4 {[%clk 0:00:43.5]} 78... Rb4 {[%clk
0:00:06.3]} 79. Ra6 {[%clk 0:00:43.8]} 79... Kf7 {[%clk 0:00:06.6]} 80. Ra5
{[%clk 0:00:42.3]} 80... Rc4 {[%clk 0:00:06.5]} 81. Kf5 {[%clk 0:00:42.7]} 1-0

[Event "Late-Titled-Tuesday-Blitz-April-02-2024"]
[Site "Chess.com"]
[Date "2024.04.02"]
[Round "5"]
[White "Jahonas"]
[Black "Doublekk14"]
[Result "1-0"]
[WhiteElo "2507"]
[BlackElo "2355"]
[TimeControl "180+1"]
[EndTime "14:54:51 PDT"]
[Termination "Jahonas won on time"]

1. e4 {[%clk 0:03:00.9]} 1... c5 {[%clk 0:02:58.4]} 2. Nf3 {[%clk 0:03:01.2]}
2... e6 {[%clk 0:02:58]} 3. d4 {[%clk 0:03:01.3]} 3... cxd4 {[%clk 0:02:50.7]}
4. Nxd4 {[%clk 0:03:02.2]} 4... Nf6 {[%clk 0:02:48]} 5. Bd3 {[%clk 0:03:00.7]}
5... Nc6 {[%clk 0:02:46.8]} 6. Nb3 {[%clk 0:02:52.5]} 6... d6 {[%clk 0:02:45.6]}
7. O-O {[%clk 0:02:51.2]} 7... Be7 {[%clk 0:02:45.3]} 8. Nc3 {[%clk 0:02:51.2]}
8... O-O {[%clk 0:02:45.2]} 9. a3 {[%clk 0:02:50.8]} 9... Ne5 {[%clk 0:02:45]}
10. Kh1 {[%clk 0:02:47.6]} 10... a6 {[%clk 0:02:45.1]} 11. f4 {[%clk 0:02:47.1]}
11... Nxd3 {[%clk 0:02:44.6]} 12. Qxd3 {[%clk 0:02:44.4]} 12... b5 {[%clk
0:02:40.6]} 13. Be3 {[%clk 0:02:42.8]} 13... Bb7 {[%clk 0:02:40.2]} 14. Rfe1
{[%clk 0:02:41.7]} 14... Qc7 {[%clk 0:02:40.1]} 15. Rad1 {[%clk 0:02:40.2]}
15... Rac8 {[%clk 0:02:39.4]} 16. Bg1 {[%clk 0:02:28.3]} 16... Rfd8 {[%clk
0:02:38.2]} 17. Qe2 {[%clk 0:02:27.1]} 17... Nd7 {[%clk 0:01:57.4]} 18. Rd3
{[%clk 0:02:18.2]} 18... Nc5 {[%clk 0:01:55.5]} 19. Nxc5 {[%clk 0:02:14.1]}
19... dxc5 {[%clk 0:01:55.4]} 20. Red1 {[%clk 0:02:04.4]} 20... Qc6 {[%clk
0:01:49.3]} 21. Rxd8+ {[%clk 0:01:52.7]} 21... Rxd8 {[%clk 0:01:49.1]} 22. Rxd8+
{[%clk 0:01:52.6]} 22... Bxd8 {[%clk 0:01:48.5]} 23. e5 {[%clk 0:01:44.3]} 23...
Ba5 {[%clk 0:01:31.5]} 24. Nd1 {[%clk 0:01:35.9]} 24... h6 {[%clk 0:01:26.9]}
25. c3 {[%clk 0:01:34.8]} 25... b4 {[%clk 0:00:57.1]} 26. axb4 {[%clk 0:01:10]}
26... cxb4 {[%clk 0:00:56.9]} 27. cxb4 {[%clk 0:01:08.2]} 27... Bxb4 {[%clk
0:00:55.8]} 28. Ne3 {[%clk 0:00:56.1]} 28... a5 {[%clk 0:00:51.6]} 29. h3 {[%clk
0:00:52.7]} 29... Bc5 {[%clk 0:00:48.9]} 30. Qc4 {[%clk 0:00:47.5]} 30... Bb4
{[%clk 0:00:32.9]} 31. Qxc6 {[%clk 0:00:44]} 31... Bxc6 {[%clk 0:00:32.3]} 32.
Nc4 {[%clk 0:00:42.1]} 32... Bd5 {[%clk 0:00:30.7]} 33. Nb6 {[%clk 0:00:34.2]}
33... Bb3 {[%clk 0:00:30.4]} 34. Bd4 {[%clk 0:00:31.8]} 34... Kf8 {[%clk
0:00:23.8]} 35. Nd7+ {[%clk 0:00:31.1]} 35... Ke7 {[%clk 0:00:23]} 36. Nc5
{[%clk 0:00:31.4]} 36... Bd5 {[%clk 0:00:19]} 37. Kg1 {[%clk 0:00:30.9]} 37...
Bd2 {[%clk 0:00:14.9]} 38. g3 {[%clk 0:00:23]} 38... h5 {[%clk 0:00:13.8]} 39.
h4 {[%clk 0:00:21.7]} 39... Kd8 {[%clk 0:00:13.6]} 40. Kf2 {[%clk 0:00:21.7]}
40... Kc7 {[%clk 0:00:12.8]} 41. Be3 {[%clk 0:00:20.6]} 41... Bb4 {[%clk
0:00:09.3]} 42. Nd3 {[%clk 0:00:18.8]} 42... Be7 {[%clk 0:00:07.1]} 43. Bd2
{[%clk 0:00:19]} 43... Kb6 {[%clk 0:00:06]} 44. Ke3 {[%clk 0:00:18.5]} 44... Kb5
{[%clk 0:00:06]} 45. Kd4 {[%clk 0:00:18.6]} 45... Bd8 {[%clk 0:00:05.1]} 46. Kc3
{[%clk 0:00:18.2]} 46... a4 {[%clk 0:00:04.6]} 47. Be1 {[%clk 0:00:17.6]} 47...
Ba5+ {[%clk 0:00:04.6]} 48. Kc2 {[%clk 0:00:17.9]} 48... Bb3+ {[%clk 0:00:04]}
49. Kc1 {[%clk 0:00:16.6]} 49... Bb6 {[%clk 0:00:02.8]} 50. Bc3 {[%clk
0:00:15.1]} 50... Kc4 {[%clk 0:00:02.6]} 51. Kd2 {[%clk 0:00:15.5]} 51... Bd4
{[%clk 0:00:02.4]} 52. Bxd4 {[%clk 0:00:14.7]} 52... Kxd4 {[%clk 0:00:02.8]} 53.
Nf2 {[%clk 0:00:14.6]} 53... Kc5 {[%clk 0:00:02.7]} 54. Kc3 {[%clk 0:00:14.4]}
54... Bd5 {[%clk 0:00:02.8]} 55. Nd3+ {[%clk 0:00:14.5]} 55... Kb5 {[%clk
0:00:03.1]} 56. Nb4 {[%clk 0:00:14.4]} 56... Bf3 {[%clk 0:00:03.2]} 57. Nc2
{[%clk 0:00:14.2]} 57... Be4 {[%clk 0:00:02.5]} 58. Nd4+ {[%clk 0:00:14.4]}
58... Kc5 {[%clk 0:00:02.9]} 59. Ne2 {[%clk 0:00:13.3]} 59... Bf5 {[%clk
0:00:02.9]} 60. Nd4 {[%clk 0:00:12.9]} 60... Be4 {[%clk 0:00:03.2]} 61. Ne2
{[%clk 0:00:09.8]} 61... Bd5 {[%clk 0:00:03.4]} 62. Nc1 {[%clk 0:00:10.5]} 62...
g6 {[%clk 0:00:02.1]} 63. Nd3+ {[%clk 0:00:10.8]} 63... Kb6 {[%clk 0:00:01.9]}
64. Kb4 {[%clk 0:00:10.9]} 64... Bc6 {[%clk 0:00:02.1]} 65. Nc5 {[%clk
0:00:11.2]} 65... Bd5 {[%clk 0:00:01.9]} 66. Nxa4+ {[%clk 0:00:11.4]} 66... Kc7
{[%clk 0:00:01.8]} 67. Kc5 {[%clk 0:00:11.8]} 67... Kd7 {[%clk 0:00:02.2]} 68.
Nc3 {[%clk 0:00:12]} 68... Bc6 {[%clk 0:00:02.3]} 69. b4 {[%clk 0:00:12.3]}
69... Bb7 {[%clk 0:00:02.7]} 70. b5 {[%clk 0:00:12.7]} 70... Kc7 {[%clk
0:00:03.2]} 71. b6+ {[%clk 0:00:13.2]} 71... Kd7 {[%clk 0:00:03.5]} 72. Nb5
{[%clk 0:00:14.1]} 72... Ba6 {[%clk 0:00:03.4]} 73. Nd6 {[%clk 0:00:14.5]} 1-0

[Event "Late-Titled-Tuesday-Blitz-April-02-2024"]
[Site "Chess.com"]
[Date "2024.04.02"]
[Round "5"]
[White "KVAIDAN"]
[Black "rdarruda"]
[Result "1-0"]
[WhiteElo "2322"]
[BlackElo "2484"]
[TimeControl "180+1"]
[EndTime "14:55:11 PDT"]
[Termination "KVAIDAN won by resignation"]

1. f4 {[%clk 0:02:36.3]} 1... d5 {[%clk 0:02:58.9]} 2. Nf3 {[%clk 0:02:35.2]}
2... Nf6 {[%clk 0:02:59]} 3. e3 {[%clk 0:02:35.3]} 3... g6 {[%clk 0:02:57.6]} 4.
Be2 {[%clk 0:02:35.3]} 4... Bg7 {[%clk 0:02:57.6]} 5. O-O {[%clk 0:02:35.9]}
5... c5 {[%clk 0:02:58.2]} 6. d3 {[%clk 0:02:36.8]} 6... Nc6 {[%clk 0:02:58.3]}
7. Kh1 {[%clk 0:02:37.3]} 7... O-O {[%clk 0:02:57.5]} 8. a4 {[%clk 0:02:37.5]}
8... Bg4 {[%clk 0:02:54.6]} 9. Nbd2 {[%clk 0:02:35.3]} 9... Qc7 {[%clk
0:02:52.1]} 10. e4 {[%clk 0:02:30.5]} 10... dxe4 {[%clk 0:02:51]} 11. dxe4
{[%clk 0:02:30.4]} 11... Rfd8 {[%clk 0:02:41.7]} 12. Qe1 {[%clk 0:02:24.8]}
12... Nb4 {[%clk 0:02:40.2]} 13. Bd1 {[%clk 0:02:23.5]} 13... Qxf4 {[%clk
0:02:31.8]} 14. e5 {[%clk 0:02:08.8]} 14... Nfd5 {[%clk 0:02:02.9]} 15. Ne4
{[%clk 0:02:08.5]} 15... Qf5 {[%clk 0:01:46.3]} 16. Nfg5 {[%clk 0:02:08.4]}
16... Qc8 {[%clk 0:01:41.6]} 17. e6 {[%clk 0:01:50.4]} 17... Bxe6 {[%clk
0:01:36]} 18. Qf2 {[%clk 0:01:40.3]} 18... Bf5 {[%clk 0:01:05.4]} 19. Nxc5
{[%clk 0:01:37.6]} 19... h6 {[%clk 0:00:47.9]} 20. c3 {[%clk 0:01:31.5]} 20...
hxg5 {[%clk 0:00:44.1]} 21. cxb4 {[%clk 0:01:31.7]} 21... Nxb4 {[%clk
0:00:41.4]} 22. Be3 {[%clk 0:01:23.3]} 22... b6 {[%clk 0:00:37.9]} 23. Nb3
{[%clk 0:01:14.5]} 23... Nd3 {[%clk 0:00:38]} 24. Qg3 {[%clk 0:00:59.4]} 24...
Nxb2 {[%clk 0:00:37.9]} 25. Bxg5 {[%clk 0:00:53.9]} 25... Nxd1 {[%clk
0:00:36.4]} 26. Raxd1 {[%clk 0:00:50.8]} 26... Rxd1 {[%clk 0:00:35.9]} 27. Rxd1
{[%clk 0:00:50.4]} 27... Qc2 {[%clk 0:00:30.5]} 28. Rc1 {[%clk 0:00:47.9]} 28...
Qb2 {[%clk 0:00:29.6]} 29. Rf1 {[%clk 0:00:26.3]} 29... Bc2 {[%clk 0:00:26.1]}
30. Qf3 {[%clk 0:00:26.1]} 30... Qxb3 {[%clk 0:00:25.3]} 31. Qxa8+ {[%clk
0:00:24.6]} 31... Kh7 {[%clk 0:00:23.8]} 32. Qxa7 {[%clk 0:00:20.6]} 32... Bd3
{[%clk 0:00:23.1]} 33. Re1 {[%clk 0:00:18.6]} 33... e5 {[%clk 0:00:20.6]} 34.
Qe7 {[%clk 0:00:16.7]} 34... Qc3 {[%clk 0:00:19.1]} 35. Rg1 {[%clk 0:00:16.3]}
35... Bc4 {[%clk 0:00:19]} 36. Bf6 {[%clk 0:00:16.1]} 36... Bxf6 {[%clk
0:00:19]} 37. Qxf6 {[%clk 0:00:16.1]} 37... Be6 {[%clk 0:00:19.5]} 38. h3 {[%clk
0:00:15.8]} 38... Qc5 {[%clk 0:00:19.3]} 39. Rf1 {[%clk 0:00:15.2]} 39... e4
{[%clk 0:00:19.4]} 40. Qh4+ {[%clk 0:00:15.5]} 40... Kg7 {[%clk 0:00:19]} 41.
Qxe4 {[%clk 0:00:15.9]} 41... Qc3 {[%clk 0:00:17.8]} 42. Rf3 {[%clk 0:00:15.1]}
42... Qc1+ {[%clk 0:00:17.3]} 43. Kh2 {[%clk 0:00:15.5]} 43... Qc7+ {[%clk
0:00:17.9]} 44. Qf4 {[%clk 0:00:15.9]} 44... Qc2 {[%clk 0:00:17.7]} 45. Qf6+
{[%clk 0:00:16.1]} 45... Kg8 {[%clk 0:00:18]} 46. Rc3 {[%clk 0:00:15.5]} 46...
Qd2 {[%clk 0:00:15.7]} 47. Rg3 {[%clk 0:00:15]} 47... Qd6 {[%clk 0:00:15]} 48.
Qg5 {[%clk 0:00:11.8]} 48... Qc7 {[%clk 0:00:14.8]} 49. h4 {[%clk 0:00:12.3]}
49... Kf8 {[%clk 0:00:05.9]} 50. h5 {[%clk 0:00:12.7]} 50... gxh5 {[%clk
0:00:06.8]} 51. Qxh5 {[%clk 0:00:13.1]} 51... Ke7 {[%clk 0:00:07.3]} 52. Qh6
{[%clk 0:00:13.5]} 52... Ke8 {[%clk 0:00:07.6]} 53. Qh4 {[%clk 0:00:13.9]} 53...
Kf8 {[%clk 0:00:07.1]} 54. Qf6 {[%clk 0:00:13.7]} 54... Ke8 {[%clk 0:00:07.4]}
55. Qh8+ {[%clk 0:00:13.2]} 55... Ke7 {[%clk 0:00:07.8]} 56. Qh4+ {[%clk
0:00:13.2]} 56... Ke8 {[%clk 0:00:08.1]} 57. Qd4 {[%clk 0:00:13.3]} 57... Ke7
{[%clk 0:00:07.9]} 58. Qb4+ {[%clk 0:00:13.5]} 58... Ke8 {[%clk 0:00:08]} 59.
Qc3 {[%clk 0:00:12.4]} 59... Qf4 {[%clk 0:00:06.4]} 60. Qc6+ {[%clk 0:00:11]}
60... Ke7 {[%clk 0:00:06.5]} 61. Qb7+ {[%clk 0:00:10.8]} 61... Ke8 {[%clk
0:00:06.5]} 62. Qf3 {[%clk 0:00:11.2]} 62... Qh4+ {[%clk 0:00:06]} 63. Kg1
{[%clk 0:00:10.9]} 63... Qd4+ {[%clk 0:00:06.2]} 64. Qe3 {[%clk 0:00:10.4]}
64... Qd1+ {[%clk 0:00:06.4]} 65. Kf2 {[%clk 0:00:10.1]} 65... Qxa4 {[%clk
0:00:07.3]} 66. Qxb6 {[%clk 0:00:09.2]} 66... Qf4+ {[%clk 0:00:07.2]} 67. Rf3
{[%clk 0:00:09]} 67... Qh4+ {[%clk 0:00:07.8]} 68. g3 {[%clk 0:00:08.4]} 68...
Qh2+ {[%clk 0:00:07.7]} 69. Ke3 {[%clk 0:00:08.9]} 69... Qg1+ {[%clk 0:00:08]}
70. Rf2 {[%clk 0:00:09.3]} 70... Qxg3+ {[%clk 0:00:07]} 71. Kd2 {[%clk
0:00:08.6]} 71... Qg5+ {[%clk 0:00:05.1]} 72. Kc2 {[%clk 0:00:09]} 72... Qg6+
{[%clk 0:00:04.9]} 73. Kb2 {[%clk 0:00:08.9]} 73... Qg7+ {[%clk 0:00:04.6]} 74.
Ka3 {[%clk 0:00:08.2]} 74... Qa1+ {[%clk 0:00:04.6]} 75. Kb4 {[%clk 0:00:08.6]}
75... Qb2+ {[%clk 0:00:04.8]} 76. Rxb2 {[%clk 0:00:08]} 76... Ke7 {[%clk
0:00:03.5]} 77. Qc7+ {[%clk 0:00:08.3]} 77... Kf6 {[%clk 0:00:04.3]} 78. Rf2+
{[%clk 0:00:08.6]} 78... Kg7 {[%clk 0:00:05.2]} 79. Kc5 {[%clk 0:00:09]} 79...
Kg6 {[%clk 0:00:05]} 80. Kd6 {[%clk 0:00:09.5]} 1-0